Cogmind - Beta 11.1 @@@ ROGUE MODE // 2022.05.31 @ 22:57:44 Player: darki Result: Destroyed by as-75902 with Assembled Focal Cannon Performance ------------- Evolutions (4) 2000 Regions Visited (15) 3000 Robots Destroyed (187) 935 Value Destroyed (5786) 5786 Prototype IDs (50) 1000 Alien Tech Used (0) 0 Bonus (1508) 1508 TOTAL SCORE: 14229 Bonus ------- High Alert Combat Kills 89 Follower Combat Kills 720 Aligned with FarCom 300 Met Data Miner 300 Met Imprinter 300 Friendly Fire -201 Cogmind --------- Core Integrity 0/850 Matter 182/300 Energy 3/100 System Corruption 0% Temperature Cool (4) Movement Walking (210) Ox1 Location -6/Deep Caves Parts ------- > --- POWER (1) -------- Zionite Light DM Reactor > --- PROPULSION (4) --- Zionite Composite Leg I Zionite Composite Leg I Zionite Composite Leg I Zionite Composite Leg I > --- UTILITY (6) ------ Experimental Heat Sink Huge Storage Unit Phase Shifter Zionite Weapon Casing Improved Shield Generator > --- WEAPON (4) ------- Zionite Laser-S Zionite Phaser-S Ion Cannon Flak Gun > --- INVENTORY (25) --- Zionite Light DM Reactor Zionite Light DM Reactor Makeshift Leg Makeshift Leg Zionite Glidesys I Zionite Glidesys I Zionite Glidesys I Zionite Glidesys I Humpback Zionite Biocell (600) Medium Matter Pod (11) Makeshift System Restoration Module Proton Cannon Improved Proton Missile Launcher Makeshift Hammer Self-destruct Interrupter (50) Peak State ------------ > --- POWER ------------ Zionite Light DM Reactor > --- PROPULSION ------- Zionite Composite Leg I Zionite Composite Leg I Zionite Composite Leg I Zionite Composite Leg I > --- UTILITY ---------- Experimental Heat Sink Huge Storage Unit Zionite Biocell Zionite Weapon Casing Zionite Heavy Carapace > --- WEAPON ----------- Zionite Laser-S High-powered Shotgun Flak Gun Improved Proton Missile Launcher > --- INVENTORY -------- Zionite Light DM Reactor Zionite Light DM Reactor Makeshift Leg Makeshift Leg Zionite Glidesys I Zionite Glidesys I Zionite Glidesys I Zionite Glidesys I Advanced Heat Sink Humpback Zionite Biocell Medium Matter Pod Medium Matter Pod Phase Shifter Zionite Weapon Casing Zionite Weapon Casing Zionite Light Carapace Makeshift System Restoration Module Zionite Phaser-S Proton Cannon Ion Cannon Makeshift Hammer Self-destruct Interrupter Deploy-a-Sentry [Rating: 94] Favorites ----------- Power Light Nuclear Core Engine Angular Momentum Engine Power Core Light Nuclear Core Reactor Antimatter Reactor Propulsion Light Treads Treads Light Treads Leg Flexi-carbon Leg Wheel Wheel Hover Unit Gravmag System Utility Huge Storage Unit Device Advanced Heat Sink Storage Huge Storage Unit Processor Advanced Signal Interpreter Hackware Hacking Suite Protection Core Shielding Weapon Barrage Gun Energy Gun Heavy Particle Gun Energy Cannon Ion Cannon Ballistic Gun Barrage Gun Ballistic Cannon Flak Cannon Launcher Improved Proton Missile Launcher Special Weapon Mining Laser Impact Weapon Makeshift Hammer Slashing Weapon Axe Build | -11 -10 -10 -10 -9 -8 -8 -7 -7 -7 -6 -6 -6 -6 -6 -6 ------- Run | Scr Mat Min Exi Min Mat Sto Fac Low Dat Pro Fac Low Low Zio Dee Slots Evolved 8 | . . . . . 4 . 2 . . . 2 . . . . Power . | . . . . . . . . . . . . . . . . Propulsion 2 | . . . . . 2 . . . . . . . . . . Utility 4 | . . . . . 2 . . . . . 2 . . . . Weapon 2 | . . . . . . . 2 . . . . . . . . Parts Attached 204 | . 27 3 . 6 . 33 29 . . 15 11 5 22 22 31 Power 17 | . 4 1 . . . 4 1 . . 1 1 . 3 1 1 Engine 8 | . 4 . . . . 1 . . . . 1 . 2 . . Core 7 | . . 1 . . . 3 1 . . 1 . . 1 . . Reactor 2 | . . . . . . . . . . . . . . 1 1 Propulsion 50 | . 7 . . 2 . 9 8 . . 3 6 . 1 8 6 Treads 16 | . 5 . . . . 2 8 . . . 1 . . . . Leg 27 | . 2 . . 2 . 4 . . . 3 2 . 1 7 6 Wheel 5 | . . . . . . 3 . . . . 2 . . . . Hover 2 | . . . . . . . . . . . 1 . . 1 . Flight . | . . . . . . . . . . . . . . . . Utility 60 | . 9 . . 1 . 7 7 . . 4 4 1 7 4 16 Device 16 | . . . . . . 2 2 . . 2 2 . 2 1 5 Storage 12 | . 5 . . . . . 1 . . . . . 3 1 2 Processor 6 | . . . . . . 1 2 . . . 1 . . 2 . Hackware 2 | . . . . . . . 2 . . . . . . . . Protection 24 | . 4 . . 1 . 4 . . . 2 1 1 2 . 9 Artifact . | . . . . . . . . . . . . . . . . Weapon 77 | . 7 2 . 3 . 13 13 . . 7 . 4 11 9 8 Energy Gun 18 | . . 1 . . . 10 2 . . 2 . . . . 3 Energy Cannon 4 | . . . . . . . . . . . . . 1 2 1 Ballistic Gun 38 | . 7 . . 2 . 2 8 . . 4 . 2 8 4 1 Ballistic Cannon 4 | . . 1 . 1 . . 2 . . . . . . . . Launcher 9 | . . . . . . 1 . . . . . 2 2 1 3 Special Weapon 2 | . . . . . . . 1 . . 1 . . . . . Impact Weapon 1 | . . . . . . . . . . . . . . 1 . Slashing Weapon 1 | . . . . . . . . . . . . . . 1 . Piercing Weapon . | . . . . . . . . . . . . . . . . Special Melee Weapon . | . . . . . . . . . . . . . . . . Unidentified Prototypes 16 | . . . . . . 6 . . . 1 . . . . 9 Corrupted Parts 1 | . . . . . . . . . . . . . 1 . . System Corruption 5 | . . . . . . . . . . . . . 5 . . Parts Lost 90 | . 8 . . 3 . 16 13 . . 15 1 1 21 4 8 Power 10 | . 2 . . . . 4 1 . . 1 . . 2 . . Propulsion 31 | . 2 . . 2 . 7 6 . . 6 1 . 5 1 1 Utility 26 | . 2 . . 1 . 4 1 . . 3 . 1 7 1 6 Weapon 23 | . 2 . . . . 1 5 . . 5 . . 7 2 1 Highest Loss Streak 13 | . 3 . . 3 . 6 3 . . 13 1 1 13 3 4 To Critical Strikes 1 | . 1 . . . . . . . . . . . . . . Average Slot Usage (%) 84 | . 98 100 76 98 63 91 99 100 100 89 89 99 69 53 99 Engine 4 | . 13 10 . . . 2 6 . . . 2 6 3 4 . Core 2 | . . 3 14 14 9 5 . 7 7 6 3 . 2 . . Treads 8 | . 15 28 28 . . 6 13 30 30 13 1 6 2 . . Leg 11 | . 12 . . 26 18 19 . . . 10 13 20 6 12 26 Wheel 2 | . . . . . . 3 15 . . . 1 . . . . Device 7 | . . . . . . 8 4 7 7 6 12 6 6 9 17 Storage 9 | . 14 14 14 14 9 9 6 7 7 7 6 6 6 7 9 Processor 6 | . . . . . . . 12 15 15 13 6 13 9 7 2 Protection 6 | . 13 14 14 13 9 16 2 . . 1 13 12 5 . 8 Energy Gun 2 | . 1 3 2 . . 9 5 . . . . . . . 4 Ballistic Gun 14 | . 26 21 . 14 9 3 24 23 23 21 26 25 14 3 10 Ballistic Cannon 1 | . . 2 2 14 9 5 . 7 7 5 . . . . . Naked Turns . | . . . . . . . . . . . . . . . . Heaviest Build 167 | 11 88 95 95 93 93 105 107 106 106 106 132 129 114 167 167 Greatest Support 96 | 20 40 40 40 40 23 43 80 80 80 80 58 58 43 80 96 Greatest Overweight (x) 36 | . 2 2 2 9 4 9 2 1 1 7 12 2 36 31 2 Average Overweight (x) 2 | . 1 2 2 4 4 2 1 1 1 2 3 1 6 3 1 Largest Inventory Capacity 35 | . 25 25 25 25 25 25 25 25 25 25 25 25 35 25 25 Average Capacity 24 | . 20 25 25 25 25 25 24 25 25 25 25 25 25 25 25 Most Carried 25 | . 22 24 25 24 23 25 25 19 19 20 25 25 24 25 25 Average Carried 19 | . 11 22 24 21 23 19 23 17 19 19 22 24 14 19 21 Final Capacity 25 | 8 25 25 25 25 25 25 25 25 25 25 25 25 25 25 25 Final Carried 25 | 6 22 24 25 23 23 25 17 19 19 20 24 24 14 25 17 Class Distribution -------------------- 42% | Mutant 15% | Scavenger-Gunner 11% | Derelict-Tank 9% | Scavenger-Tank 7% | Scavenger-Skirmisher 6% | Scavenger-Mutant Dominant Class ---------------- Mutant | -10/Materials Mutant | -10/Mines Mutant | -10/Exiles Mutant | -9/Mines Mutant | -8/Materials Scavenger-Mutant | -8/Storage Scavenger-Skirmisher | -7/Factory Scavenger-Gunner | -7/Lower Caves Scavenger-Gunner | -7/Data Miner Scavenger-Gunner | -6/Proximity Caves Scavenger-Tank | -6/Factory Scavenger-Tank | -6/Lower Caves Gunner | -6/Lower Caves Mutant | -6/Zion Derelict-Tank | -6/Deep Caves Resources | -11 -10 -10 -10 -9 -8 -8 -7 -7 -7 -6 -6 -6 -6 -6 -6 ----------- Run | Scr Mat Min Exi Min Mat Sto Fac Low Dat Pro Fac Low Low Zio Dee Matter Collected 5763 | 200 424 19 . 173 . 713 1289 206 . 404 388 353 238 921 435 Remotely . | . . . . . . . . . . . . . . . . Salvage Created 6591 | . 789 40 . 125 . 1467 1829 136 . 386 529 528 334 271 157 Parts 387 | . 57 2 . 14 . 93 103 5 . 17 27 16 13 31 9 Haulers Intercepted 14 | . 2 . . . . 6 6 . . . . . . . . Recyclers Shooed 2 | . 1 . . . . . 1 . . . . . . . . Parts Field Recycled . | . . . . . . . . . . . . . . . . Retrieved Matter . | . . . . . . . . . . . . . . . . Parts Self-Destructed 57 | . . . . . . . . 7 . 19 . 14 13 4 . Prevented 8 | . . . . . . . . . . 3 . 2 3 . . Kills | -11 -10 -10 -10 -9 -8 -8 -7 -7 -7 -6 -6 -6 -6 -6 -6 ------- Run | Scr Mat Min Exi Min Mat Sto Fac Low Dat Pro Fac Low Low Zio Dee Combat Hostiles Destroyed 125 | . 19 1 . 6 . 24 27 3 . 10 8 13 9 1 4 Guns 83 | . 19 1 . . . 6 23 3 . 7 8 8 5 1 2 Cannons 24 | . . . . 6 . 12 3 . . 3 . . . . . AOE 16 | . . . . . . 6 1 . . . . 5 4 . . Classes Destroyed 21 | . 7 . . 1 . 3 4 . . . . . 1 3 2 Worker 6 | . . . . . . 2 3 . . . 1 . . . . Builder 10 | . 1 . . . . 4 3 . . . 2 . . . . Hauler 14 | . 2 . . . . 6 6 . . . . . . . . Recycler 5 | . 1 . . . . 4 . . . . . . . . . Operator 2 | . 1 . . . . 1 . . . . . . . . . Watcher 8 | . 2 . . . . 2 4 . . . . . . . . Swarmer 30 | . 9 . . 3 . 6 2 . . 3 . 4 3 . . Grunt 59 | . 10 1 . 2 . 12 11 2 . 4 5 7 5 . . Brawler 3 | . . . . . . 1 . 1 . . . 1 . . . Duelist 3 | . . . . 1 . 1 1 . . . . . . . . Sentry 11 | . . . . . . 4 3 . . 2 1 1 . . . Specialist 4 | . . . . . . . 4 . . . . . . . . Hunter 1 | . . . . . . . 1 . . . . . . . . Programmer 7 | . . . . . . . 4 . . 1 2 . . . . Heavy 1 | . . . . . . . 1 . . . . . . . . Behemoth 1 | . . . . . . . . . . . . . 1 . . Zionite 18 | . . . . . . . . . . . . . . 18 . Z-Light 3 | . . . . . . . . . . . . . . . 3 Tinkerer 2 | . . . . . . . . . . . . . . 2 . Assembled 1 | . . . . . . . . . . . . . . . 1 Mutant 1 | . . . . . . . . . . . . . . 1 . Best Kill Streak 10 | . 10 1 . 3 . 10 6 3 . 5 3 9 3 4 2 Combat Bots Only 10 | . 10 1 . 3 . 6 5 3 . 5 3 9 3 1 2 Max Kills in Single Turn 3 | . 1 1 . 2 . 3 3 1 . 2 1 3 2 1 1 Gunslinging 1 | . . . . . . . 1 . . . . 1 . . . Exploded 3 | . . . . . . 2 1 . . . . 3 2 . . Melee . | . . . . . . . . . . . . . . . . Uniques/NPCs Destroyed 1 | . . . . . . . . . . . . . . 1 . Imprinter (-6/Zion) Combat | -11 -10 -10 -10 -9 -8 -8 -7 -7 -7 -6 -6 -6 -6 -6 -6 -------- Run | Scr Mat Min Exi Min Mat Sto Fac Low Dat Pro Fac Low Low Zio Dee Damage Taken 13261 | . 1120 63 . 352 55 1966 2342 95 . 1497 368 885 2073 1012 1433 Core 1719 | . 158 . . 45 12 182 205 14 . 253 23 70 358 165 234 Absorbed by Shields 798 | . . . . . . 236 . . . . . . 8 348 206 Redirected to Shielding 755 | . 121 9 . 46 2 38 3 . . . . 54 88 . 394 Regen/Repaired (Parts) 942 | . 90 . . . . . 450 . . . . . . 402 . Core Remaining (%) 53 | 100 . . . 18 . 64 . . . 32 . . . . . Volleys Fired 421 | . 94 2 . 7 . 80 75 5 . 24 32 18 29 40 15 Largest 4 | . 2 2 . 2 . 2 4 4 . 4 4 4 4 4 4 Hottest 208 | . 40 40 . 64 . 122 142 132 . 132 112 112 128 206 208 Shots Fired 1211 | . 188 4 . 16 . 151 296 20 . 63 128 68 98 132 47 Gun 1056 | . 188 4 . 8 . 99 284 15 . 47 128 64 89 95 35 Cannon 129 | . . . . 8 . 43 10 5 . 15 . . 4 35 9 Launcher 23 | . . . . . . 9 . . . . . 4 5 2 3 Special 3 | . . . . . . . 2 . . 1 . . . . . Kinetic 1017 | . 188 4 . 16 . 75 253 20 . 58 128 64 89 95 27 Thermal 129 | . . . . . . 35 43 . . 1 . . . 34 16 Explosive 14 | . . . . . . 9 . . . . . 2 3 . . Electromagnetic 50 | . . . . . . 32 . . . 4 . 2 6 3 3 Phasic 1 | . . . . . . . . . . . . . . . 1 Robot Hit Streak 26 | . 10 7 . 7 . 23 26 8 . 8 11 6 11 8 6 Robot Miss Streak 13 | . 5 1 . 3 . 5 5 4 . 5 8 7 3 11 13 Penetration Max 1 | . . . . . . . 1 . . 1 . . . . . Secondary Targets 15 | . 4 . . . . . 6 . . . . 4 1 . . Max Gunslinging Chain 2 | . 1 . . . . . 1 . . . . 2 1 . . Shots Hit Robots 746 | . 118 3 . 10 . 105 181 15 . 43 71 29 72 73 26 Core Hits 514 | . 52 3 . 14 . 107 98 11 . 58 30 32 33 49 27 Critical Kills 6 | . 1 . . . . . 5 . . . . . . . . Critical Parts Destroyed 10 | . 2 . . . . . 6 . . . 1 . 1 . . Critical Strikes 21 | . 3 . . . . 3 13 . . . 1 . 1 . . Burn 5 | . . . . . . 3 2 . . . . . . . . Destroy 16 | . 3 . . . . . 11 . . . 1 . 1 . . Melee Attacks 14 | . . . . . . . . . . . . . . 14 . Impact 12 | . . . . . . . . . . . . . . 12 . Slashing 2 | . . . . . . . . . . . . . . 2 . Piercing . | . . . . . . . . . . . . . . . . Sneak Attacks . | . . . . . . . . . . . . . . . . Combat Hostiles . | . . . . . . . . . . . . . . . . Follow-up Attacks . | . . . . . . . . . . . . . . . . Damage Inflicted 15712 | . 999 41 . 171 . 2790 3789 291 . 1025 1254 1375 1848 1561 568 Guns 10962 | . 999 29 . 40 . 1108 3462 216 . 806 1254 510 1203 915 420 Cannons 2039 | . . . . 131 . 852 249 75 . 219 . . 57 410 46 Explosions 2699 | . . . . . . 830 78 . . . . 865 588 236 102 Melee . | . . . . . . . . . . . . . . . . Ramming 12 | . . 12 . . . . . . . . . . . . . Kinetic 10686 | . 999 29 . 171 . 1014 3064 291 . 959 1254 510 1203 915 277 Thermal 1850 | . . . . . . 526 725 . . . . . . 410 189 Explosive 1834 | . . . . . . 721 . . . . . 677 436 . . Electromagnetic 1330 | . . . . . . 529 . . . 66 . 188 209 236 102 Impact . | . . . . . . . . . . . . . . . . Slashing . | . . . . . . . . . . . . . . . . Piercing . | . . . . . . . . . . . . . . . . Highest Corruption 5 | . 2 2 2 2 . . 2 2 2 4 . . 5 5 5 Average Corruption 2 | . 1 2 2 2 . . 1 2 2 3 . . 5 4 3 Corruption Purged 5 | . . . . . . . . . . . . . . . 5 Corruption Blocked . | . . . . . . . . . . . . . . . . Effects 168 | . 11 2 13 14 . . 20 11 4 27 . . 11 42 13 Message Errors 38 | . 2 1 3 2 . . 2 2 2 10 . . 1 10 3 Matter Fused 49 | . 1 1 5 5 . . 6 5 1 7 . . 5 9 4 Heat Flow Errors 24 | . 4 . 1 2 . . 2 1 . 3 . . 1 9 1 Energy Discharges 16 | . 1 . 3 . . . 1 2 . 3 . . 1 3 2 Data Loss (minor) 19 | . 2 . 1 2 . . 2 1 1 2 . . 1 6 1 Data Loss (major) 10 | . 1 . . 1 . . 4 . . 1 . . . 3 . Misfires 9 | . . . . 2 . . 2 . . . . . 2 1 2 Alerts 2 | . . . . . . . 1 . . 1 . . . . . Weapon Failures 1 | . . . . . . . . . . . . . . 1 . Overload Shots . | . . . . . . . . . . . . . . . . Overflow Damage 36 | . . . . . . 21 4 . . . . . . 11 . Projectiles 9 | . . . . . . . . . . . . . . 9 . Explosions 27 | . . . . . . 21 4 . . . . . . 2 . Melee . | . . . . . . . . . . . . . . . . Knockbacks 44 | . . . . 7 . 28 4 1 . 4 . . . . . Impact . | . . . . . . . . . . . . . . . . Kinetic 39 | . . . . 6 . 25 3 1 . 4 . . . . . Secondary 5 | . . . . 1 . 3 1 . . . . . . . . Self-Inflicted Damage 478 | . . . . . . 240 130 . . . . 23 85 . . Shots 15 | . . . . . . 10 2 . . . . 1 2 . . Rammed 3 | . 1 2 . . . . . . . . . . . . . Targets Rammed 3 | . 1 2 . . . . . . . . . . . . . Kicked . | . . . . . . . . . . . . . . . . Crushed . | . . . . . . . . . . . . . . . . Highest Temperature 432 | . 241 6 248 234 . 432 404 95 . 329 26 16 238 213 142 Average Temperature 89 | . 52 6 126 78 . 87 123 27 . 161 9 8 74 85 32 Received Heat Transfer 3416 | . 264 36 . 102 . 790 636 27 . 441 153 117 382 54 414 Effects 5 | . . . . . . 2 1 . . 2 . . . . . Shutdowns 1 | . . . . . . . 1 . . . . . . . . Interference 2 | . . . . . . . . . . 2 . . . . . Matter Decay 1 | . . . . . . 1 . . . . . . . . . Damage (minor) 1 | . . . . . . 1 . . . . . . . . . Siege Activations . | . . . . . . . . . . . . . . . . Robots Corrupted 1 | . . . . . . 1 . . . . . . . . . Combat Hostiles . | . . . . . . . . . . . . . . . . Parts Fried 5 | . . . . . . 3 . . . . . . . . 2 Impact Corruptions . | . . . . . . . . . . . . . . . . Robots Melted . | . . . . . . . . . . . . . . . . Combat Hostiles . | . . . . . . . . . . . . . . . . Parts Melted 3 | . . . . . . 1 2 . . . . . . . . Heat Transferred 3556 | . . . . . . 1249 1382 . . . . . . 666 259 Parts Sabotaged . | . . . . . . . . . . . . . . . . Parts Stolen . | . . . . . . . . . . . . . . . . Parts Stripped . | . . . . . . . . . . . . . . . . Power Chain Reactions 3 | . . . . . . 3 . . . . . . . . . Missiles Intercepted . | . . . . . . . . . . . . . . . . Alert | -11 -10 -10 -10 -9 -8 -8 -7 -7 -7 -6 -6 -6 -6 -6 -6 ------- Run | Scr Mat Min Exi Min Mat Sto Fac Low Dat Pro Fac Low Low Zio Dee Peak Influence 649 | . 220 30 . 156 31 295 649 . . . 132 . . . . Initial 123 | . . . . . 16 13 123 . . . 12 . . . . Average 85 | . 47 5 . 24 17 135 150 . . . 46 . . . . Maximum Alert Level 2 | . 1 . . . . 1 2 . . . . . . . . Low Security (%) 89 | . 95 100 . 100 100 78 78 . . . 100 . . . . Level 1 6 | . 4 . . . . 21 7 . . . . . . . . Level 2 4 | . . . . . . . 14 . . . . . . . . Level 3 . | . . . . . . . . . . . . . . . . Level 4 . | . . . . . . . . . . . . . . . . Level 5 . | . . . . . . . . . . . . . . . . High Security . | . . . . . . . . . . . . . . . . Max Security . | . . . . . . . . . . . . . . . . Squads Dispatched 26 | . 5 1 . . . 4 9 . . . 7 . . . . Investigation 6 | . 4 1 . . . . . . . . 1 . . . . Extermination 8 | . . . . . . . 4 . . . 4 . . . . Reinforcement 8 | . 1 . . . . 1 4 . . . 2 . . . . Assault 2 | . . . . . . 1 1 . . . . . . . . Garrison 2 | . . . . . . 2 . . . . . . . . . Intercept . | . . . . . . . . . . . . . . . . Searches Triggered . | . . . . . . . . . . . . . . . . Data Miner Redirects 1 | . . . . . . . . . . . 1 . . . . Construction Impeded 2 | . . . . . . . 1 . . . 1 . . . . Haulers Reinforced . | . . . . . . . . . . . . . . . . Active Scanning Responses . | . . . . . . . . . . . . . . . . Cargo Convoy Interrupts 1 | . . . . . . . 1 . . . . . . . . Stealth | -11 -10 -10 -10 -9 -8 -8 -7 -7 -7 -6 -6 -6 -6 -6 -6 --------- Run | Scr Mat Min Exi Min Mat Sto Fac Low Dat Pro Fac Low Low Zio Dee Distress Signals 2 | . . . . . . 2 . . . . . . . . . Communications Jammed . | . . . . . . . . . . . . . . . . Distress Signals . | . . . . . . . . . . . . . . . . Times Spotted 230 | . 37 2 . 9 1 34 36 3 . 15 14 12 11 43 13 Peak Tracking Total 10 | . 9 2 . 3 1 4 6 3 . 7 3 7 3 10 5 Tactical Retreats 6 | . 1 . . . . 3 1 . . . . . . 1 . Traps | -11 -10 -10 -10 -9 -8 -8 -7 -7 -7 -6 -6 -6 -6 -6 -6 ------- Run | Scr Mat Min Exi Min Mat Sto Fac Low Dat Pro Fac Low Low Zio Dee Traps Triggered 7 | . 4 . . . . 1 2 . . . . . . . . Indirectly . | . . . . . . . . . . . . . . . . Trap Hack Attempts . | . . . . . . . . . . . . . . . . Triggered . | . . . . . . . . . . . . . . . . Disarmed . | . . . . . . . . . . . . . . . . Reprogrammed . | . . . . . . . . . . . . . . . . Reused . | . . . . . . . . . . . . . . . . Traps Extracted . | . . . . . . . . . . . . . . . . Installed . | . . . . . . . . . . . . . . . . Triggered 2 | . . . . . . . 2 . . . . . . . . Exploded 2 | . . . . . . 1 1 . . . . . . . . Machines | -11 -10 -10 -10 -9 -8 -8 -7 -7 -7 -6 -6 -6 -6 -6 -6 ---------- Run | Scr Mat Min Exi Min Mat Sto Fac Low Dat Pro Fac Low Low Zio Dee Machines Disabled 12 | . . . . . . . 9 . . 1 1 1 . . . Max in Single Turn 4 | . . . . . . . 4 . . 1 . 1 . . . Garrison Access 2 | . . . . . . 1 1 . . . . . . . . Machines Sabotaged . | . . . . . . . . . . . . . . . . Garrisons Compromised 1 | . . . . . . . 1 . . . . . . . . Overloaded Fab Kills . | . . . . . . . . . . . . . . . . Hacking | -11 -10 -10 -10 -9 -8 -8 -7 -7 -7 -6 -6 -6 -6 -6 -6 --------- Run | Scr Mat Min Exi Min Mat Sto Fac Low Dat Pro Fac Low Low Zio Dee Machines Accessed 25 | . 10 1 1 . . 2 6 . 4 . 1 . . . . Terminals 9 | . 7 . . . . 2 . . . . . . . . . Fabricators 4 | . . . . . . . 3 . . . 1 . . . . Repair Stations 2 | . 1 . . . . . 1 . . . . . . . . Recycling Units 3 | . 2 . . . . . 1 . . . . . . . . Scanalyzers . | . . . . . . . . . . . . . . . . Garrison Access 1 | . . . . . . . 1 . . . . . . . . Total Hacks 76 | . 27 1 1 . . 3 11 . 31 . 2 . . . . Successful 60 | . 19 1 1 . . 1 5 . 31 . 2 . . . . Failed 16 | . 8 . . . . 2 6 . . . . . . . . Catastrophic 4 | . 2 . . . . 1 1 . . . . . . . . Database Lockouts . | . . . . . . . . . . . . . . . . Manual 20 | . 16 . 1 . . 3 . . . . . . . . . Terminals 21 | . 18 . . . . 3 . . . . . . . . . Fabricators 6 | . . . . . . . 4 . . . 2 . . . . Repair Stations 9 | . 5 . . . . . 4 . . . . . . . . Recycling Units 6 | . 4 . . . . . 2 . . . . . . . . Scanalyzers . | . . . . . . . . . . . . . . . . Garrison Access 1 | . . . . . . . 1 . . . . . . . . Terminal Hacks 38 | . 4 1 1 . . 1 . . 31 . . . . . . Record 12 | . 1 . . . . . . . 11 . . . . . . Part Schematic 10 | . . . . . . . . . 10 . . . . . . Robot Schematic 7 | . . . . . . . . . 7 . . . . . . Robot Analysis 1 | . 1 . . . . . . . . . . . . . . Prototype ID Bank 3 | . . . . . . . . . 3 . . . . . . Open Door 1 | . . 1 . . . . . . . . . . . . . Level Access Points 1 | . . . . . . 1 . . . . . . . . . Terminal Index 1 | . 1 . . . . . . . . . . . . . . Alert Level 1 | . 1 . . . . . . . . . . . . . . EX-Prototype ID Bank 1 | . . . 1 . . . . . . . . . . . . Fabricator Hacks 3 | . . . . . . . 1 . . . 2 . . . . Network Status 1 | . . . . . . . 1 . . . . . . . . Load Schematic 1 | . . . . . . . . . . . 1 . . . . Build 1 | . . . . . . . . . . . 1 . . . . Repair Station Hacks 7 | . 5 . . . . . 2 . . . . . . . . Scan Component 3 | . 2 . . . . . 1 . . . . . . . . Repair 3 | . 2 . . . . . 1 . . . . . . . . Refit 1 | . 1 . . . . . . . . . . . . . . Recycling Unit Hacks 5 | . 4 . . . . . 1 . . . . . . . . Process 1 | . 1 . . . . . . . . . . . . . . Report Inventory 3 | . 2 . . . . . 1 . . . . . . . . Retrieve Matter 1 | . 1 . . . . . . . . . . . . . . Scanalyzer . | . . . . . . . . . . . . . . . . Garrison Access Hacks 1 | . . . . . . . 1 . . . . . . . . Seal Access 1 | . . . . . . . 1 . . . . . . . . Unauthorized Hacks 6 | . 6 . . . . . . . . . . . . . . Terminals 6 | . 6 . . . . . . . . . . . . . . Botnet 6 | . 6 . . . . . . . . . . . . . . Fabricators . | . . . . . . . . . . . . . . . . Repair Stations . | . . . . . . . . . . . . . . . . Recycling Units . | . . . . . . . . . . . . . . . . Scanalyzers . | . . . . . . . . . . . . . . . . Garrison Access . | . . . . . . . . . . . . . . . . Data Cores Recovered . | . . . . . . . . . . . . . . . . Used . | . . . . . . . . . . . . . . . . Hacking Detections 16 | . 9 . . . . 1 5 . . . 1 . . . . Full Trace Events 3 | . 2 . . . . . . . . . 1 . . . . Feedback Events . | . . . . . . . . . . . . . . . . Feedback Blocked . | . . . . . . . . . . . . . . . . Robot Schematics Acquired 7 | . . . . . . . . . 7 . . . . . . Robots Built 2 | . . . . . . . . . . . 2 . . . . Authchips . | . . . . . . . . . . . . . . . . Time 152 | . . . . . . . . . . . 152 . . . . Total Robot Build Rating 10 | . . . . . . . . . . . 10 . . . . Part Schematics Acquired 10 | . . . . . . . . . 10 . . . . . . Parts Built . | . . . . . . . . . . . . . . . . Authchips . | . . . . . . . . . . . . . . . . Time . | . . . . . . . . . . . . . . . . Total Part Build Rating . | . . . . . . . . . . . . . . . . Parts Repaired 3 | . 2 . . . . . 1 . . . . . . . . Time 65 | . 52 . . . . . 13 . . . . . . . . Parts Recycled . | . . . . . . . . . . . . . . . . Recycled Matter 114 | . 114 . . . . . . . . . . . . . . Retrieved Matter 114 | . 114 . . . . . . . . . . . . . . Retrieved Components . | . . . . . . . . . . . . . . . . Parts Scanalyzed . | . . . . . . . . . . . . . . . . Part Schematics Acquired . | . . . . . . . . . . . . . . . . Parts Damaged . | . . . . . . . . . . . . . . . . Bothacking | -11 -10 -10 -10 -9 -8 -8 -7 -7 -7 -6 -6 -6 -6 -6 -6 ------------ Run | Scr Mat Min Exi Min Mat Sto Fac Low Dat Pro Fac Low Low Zio Dee Used RIF Installer . | . . . . . . . . . . . . . . . . Robots Hacked . | . . . . . . . . . . . . . . . . Non-combat . | . . . . . . . . . . . . . . . . Combat . | . . . . . . . . . . . . . . . . Robot Hacks Applied . | . . . . . . . . . . . . . . . . Relay Couplers Released 5 | . . . . . . 3 2 . . . . . . . . Machine Destruction 5 | . . . . . . 3 2 . . . . . . . . Fabnet Peak Effective % . | . . . . . . . . . . . . . . . . Robots Rewired . | . . . . . . . . . . . . . . . . Allies Hacked . | . . . . . . . . . . . . . . . . Hacks Repelled . | . . . . . . . . . . . . . . . . Allies | -11 -10 -10 -10 -9 -8 -8 -7 -7 -7 -6 -6 -6 -6 -6 -6 -------- Run | Scr Mat Min Exi Min Mat Sto Fac Low Dat Pro Fac Low Low Zio Dee Total Allies 5 | . . . . 2 . . . . . 1 2 . . . . Largest Group 2 | . . . . 2 2 2 . . . 1 2 2 . . . Highest-Rated Group 96 | . . . . 43 43 43 . . . 96 82 82 . . . Highest-Rated Ally 96 | . . . . 31 31 31 . . . 96 41 41 . . . Total Orders 4 | . . . . . . . . . . . 4 . . . . STAY 2 | . . . . . . . . . . . 2 . . . . FOLLOW 2 | . . . . . . . . . . . 2 . . . . Ally Attacks 102 | . . . . 7 . 4 . . . 20 5 10 . 36 20 Total Damage 3953 | . . . . 104 . 84 . . . 423 220 247 . 1902 973 Kills 35 | . . . . 3 . 1 . . . 4 2 1 . 16 8 Allies Corrupted . | . . . . . . . . . . . . . . . . Allies Melted . | . . . . . . . . . . . . . . . . Turrets Deployed 3 | . . . . . . . . . . . . . . 1 2 Intel | -11 -10 -10 -10 -9 -8 -8 -7 -7 -7 -6 -6 -6 -6 -6 -6 ------- Run | Scr Mat Min Exi Min Mat Sto Fac Low Dat Pro Fac Low Low Zio Dee Robot Analysis Total 1 | . 1 . . . . . . . . . . . . . . Derelict Logs Recovered 5 | . . . . 1 . . . 1 . . . 1 . 2 . Drone Launches . | . . . . . . . . . . . . . . . . Drone Recoveries . | . . . . . . . . . . . . . . . . Exploration | -11 -10 -10 -10 -9 -8 -8 -7 -7 -7 -6 -6 -6 -6 -6 -6 ------------- Run | Scr Mat Min Exi Min Mat Sto Fac Low Dat Pro Fac Low Low Zio Dee Turns Passed 23457 | . 2420 446 1336 1218 28 1488 3041 913 312 1173 1610 975 873 5691 1933 Spaces Moved 7167 | 1 838 122 415 284 8 466 961 373 131 339 407 416 169 1540 697 Core 137 | . . . . . . . . . . . . . 20 117 . Treads 2064 | . 433 122 415 6 . 101 232 373 131 251 . . . . . Legs 4041 | 1 405 . . 278 8 245 . . . 88 331 416 149 1423 697 Wheels 925 | . . . . . . 120 729 . . . 76 . . . . Hover . | . . . . . . . . . . . . . . . . Flight . | . . . . . . . . . . . . . . . . Fastest Speed 116 | 120 120 320 320 320 400 116 116 240 240 240 170 190 260 196 204 Average Speed 268 | 120 238 320 320 405 400 239 145 240 240 317 275 213 449 334 228 Slowest Speed 1850 | 120 320 320 320 750 400 465 240 240 240 610 400 260 1850 1600 270 Overloaded Moves . | . . . . . . . . . . . . . . . . Propulsion Burnouts . | . . . . . . . . . . . . . . . . Robots Hopped 3 | . . . . . . . . . . . . . . 3 . Cave-ins Triggered . | . . . . . . . . . . . . . . . . Exploration Rate (%) 51 | 2 97 34 89 58 3 74 19 61 71 52 7 60 30 90 72 Regions Visited 15 Branch Regions 11 Pre-discovered Areas 3 | . . . . . . . . . 1 . . . . 2 . Known Exits Taken 6 | . . . . . . 1 . . . 1 1 1 1 1 . Unknown Exits Taken 9 | 1 1 1 1 1 1 . 1 1 1 . . . . . . Scrap Searched 12 | . . 1 . 1 . . . 3 . 2 . 2 1 2 . Spaces Dug 2 | . . . . . . . . . . . . . . 2 . Terrain Destroyed 213 | . . . . . . 38 87 1 . 5 . 30 48 2 2 Melee 2 | . . . . . . . . . . . . . . 2 . Projectile 12 | . . . . . . . 2 1 . 5 . 1 1 . 2 AOE 199 | . . . . . . 38 85 . . . . 29 47 . . Terrain Rammed . | . . . . . . . . . . . . . . . . Walls Destroyed . | . . . . . . . . . . . . . . . . Machines Disabled . | . . . . . . . . . . . . . . . . Actions | -11 -10 -10 -10 -9 -8 -8 -7 -7 -7 -6 -6 -6 -6 -6 -6 --------- Run | Scr Mat Min Exi Min Mat Sto Fac Low Dat Pro Fac Low Low Zio Dee Total 10652 | . 1107 172 429 341 7 697 2466 379 130 386 832 463 235 1993 1015 Wait 2564 | . 109 40 . 42 . 84 1339 1 . 2 364 22 7 327 227 Move 7146 | . 837 121 414 283 7 465 960 372 130 338 406 415 168 1533 697 Hop 3 | . . . . . . . . . . . . . . 3 . Pick Up 159 | . 25 1 6 3 . 18 44 1 . 4 9 2 1 33 12 Fast Attach 68 | . 10 3 . 1 . 15 3 . . 9 8 . 1 7 11 Attach 97 | . 9 . . 5 . 17 18 . . 6 2 1 19 9 11 Detach 33 | . . 1 2 . . 6 . . . 3 2 . 8 3 8 Swap 39 | . 8 . . . . 1 8 . . . 1 4 2 6 9 Drop 107 | . 14 2 7 . . 11 19 . . . 8 1 . 20 25 Fire 421 | . 94 2 . 7 . 80 75 5 . 24 32 18 29 40 15 Melee 12 | . . . . . . . . . . . . . . 12 . Ram . | . . . . . . . . . . . . . . . . Kick . | . . . . . . . . . . . . . . . . Crush 3 | . 1 2 . . . . . . . . . . . . . Escape Stasis . | . . . . . . . . . . . . . . . . Rewire . | . . . . . . . . . . . . . . . . Trap . | . . . . . . . . . . . . . . . . Miscellaneous . | . . . . . . . . . . . . . . . . Route ------- -11/Scrapyard -10/Materials (discovered 5 exits: [*Mat x3] / *Min x2) -10/Mines (discovered 3 exits: [*Mat x2] / *Exi) -10/Exiles -9/Mines -8/Materials (discovered 2 exits: Fac / *Sto) -8/Storage -7/Factory -7/Lower Caves (discovered 2 exits: [*Low] / *Dat) -7/Data Miner -6/Proximity Caves -6/Factory -6/Lower Caves -6/Lower Caves -6/Zion (discovered 2 exits: *Dee / [*Pro]) -6/Deep Caves History --------- Turn | Location | Event 1 | -11/Scrapyard | Discovered new exit (range 0) 1 | -11/Scrapyard | Entered Materials 303 | -10/Materials | Build established: Mutant 369 | -10/Materials | Discovered new exit (range 8) 686 | -10/Materials | Lost 3 parts (1p1u1w) 700 | -10/Materials | Core integrity fell below 50% 727 | -10/Materials | Destroyed 10 combat bots 734 | -10/Materials | Lost 3 parts (2n1w) 954 | -10/Materials | Discovered new exit (range 16) 1242 | -10/Materials | Discovered new exit (range 10) 1394 | -10/Materials | Discovered new exit (range 12) 1636 | -10/Materials | Discovered new exit (range 12) 2250 | -10/Materials | Repaired Lgt. Assault Rifle 2289 | -10/Materials | Repaired Propulsion Shielding 2421 | -10/Materials | Entered Mines 2612 | -10/Mines | Discovered new exit (range 10) 2697 | -10/Mines | Discovered new exit (range 11) 2724 | -10/Mines | Met a Derelict shopkeep closing up shop 2851 | -10/Mines | Deemed a non-threat by the Exiles lab entrance 2854 | -10/Mines | Discovered new exit (range 5) 2867 | -10/Mines | Entered Exiles 2952 | -10/Exiles | Met 8R-AWN 3003 | -10/Exiles | Met EX-HEX 3099 | -10/Exiles | Met EX-BIN 3139 | -10/Exiles | Aligned with FarCom system 3142 | -10/Exiles | Given EX-Vault access code 3222 | -10/Exiles | Opened EX-Vault 3269 | -10/Exiles | Found Deploy-a-Sentry 3276 | -10/Exiles | Found Deploy-a-Sentry 3280 | -10/Exiles | Found Deploy-a-Sentry 3342 | -10/Exiles | Warned to stay clear of 0b10 Research branches 3448 | -10/Exiles | Met EX-DEC 3551 | -10/Exiles | Visited The Gauntlet 4164 | -10/Exiles | Discovered new exit (range 14) 4203 | -10/Exiles | Left Exiles lab with Deploy-a-Sentry 4203 | -10/Exiles | Entered Mines 4266 | -9/Mines | Lost 3 parts (2n1u) 4844 | -9/Mines | Received a Rocket Launcher from a helpful Derelict 5373 | -9/Mines | Discovered new exit (range 6) 5380 | -9/Mines | Core integrity fell below 20% 5421 | -9/Mines | Entered Materials 5421 | -8/Materials | Accompanied by 2 allies 5421 | -8/Materials | Evolved 4 slots: Propulsion x2, Utility x2 5421 | -8/Materials | Discovered new exit (range 8) 5422 | -8/Materials | Identified exit to Factory 5426 | -8/Materials | Led the pair of lost Derelicts to an unsafe place 5449 | -8/Materials | Entered Storage 5449 | -8/Storage | Accompanied by 2 allies 5549 | -8/Storage | Garrison activated, responded to threat 5758 | -8/Storage | Build established: Scavenger-Mutant 5915 | -8/Storage | Lost 4 parts (1p2u1w) 6366 | -8/Storage | Lost 6 parts (1p4n1u) 6596 | -8/Storage | Build established: Mutant 6937 | -8/Storage | Entered Factory 6937 | -7/Factory | Evolved 2 slots: Weapon x2 7246 | -7/Factory | Build established: Scavenger-Skirmisher 8424 | -7/Factory | Repaired Huge Storage Unit 8758 | -7/Factory | Cargo convoy interrupted 8966 | -7/Factory | Build established: Scavenger-Gunner 9535 | -7/Factory | Discovered new exit (range 6) 9737 | -7/Factory | First assault squad dispatched 9968 | -7/Factory | Lost 3 parts (1p1n1w) 9978 | -7/Factory | Entered Lower Caves 10242 | -7/Lower Caves | Learned location of 1 exit from Proximity Caves 10855 | -7/Lower Caves | A Derelict revealed a hidden shortcut to meet someone special 10878 | -7/Lower Caves | Discovered new exit (range 8) 10891 | -7/Lower Caves | Entered Data Miner 10891 | -7/Data Miner | Discovered new exit (range 6) 10937 | -7/Data Miner | Met Data Miner 10992 | -7/Data Miner | Learned location of Section 7 (-3) 10992 | -7/Data Miner | Acquired the access code to Warlord's prototype stash 11028 | -7/Data Miner | Received God Mode back door access code from Data Miner 11203 | -7/Data Miner | Entered Proximity Caves 11204 | -6/Proximity Caves | Identified exit to Factory 11324 | -6/Proximity Caves | Escorted by Enhanced Grunt 12034 | -6/Proximity Caves | Attracted the attention of an 0b10 base 12052 | -6/Proximity Caves | Core integrity fell below 50% 12127 | -6/Proximity Caves | Lost 13 parts (1p4n3u5w) 12376 | -6/Proximity Caves | Entered Factory 12376 | -6/Factory | Evolved 2 slots: Utility x2 12683 | -6/Factory | Build established: Derelict-Tank 13255 | -6/Factory | Build established: Scavenger-Tank 13286 | -6/Factory | Incoming investigation squad redirected 13419 | -6/Factory | Fabricated H-66 Slayer? 13618 | -6/Factory | Discovered new exit (range 4) 13982 | -6/Factory | Identified exit to Lower Caves 13986 | -6/Factory | Entered Lower Caves 13986 | -6/Lower Caves | Accompanied by 2 allies 14293 | -6/Lower Caves | Learned location of 1 exit from Factory 14357 | -6/Lower Caves | Attracted the attention of an 0b10 outpost 14411 | -6/Lower Caves | Destroyed 9 combat bots 14521 | -6/Lower Caves | Encountered a Warlord checkpoint 14917 | -6/Lower Caves | Discovered new exit (range 4) 14923 | -6/Lower Caves | Identified exit to Lower Caves 14961 | -6/Lower Caves | Entered another Lower Caves area 15010 | -6/Lower Caves | Lost 6 parts (1n2u3w) 15319 | -6/Lower Caves | Build established: Scavenger-Mutant 15367 | -6/Lower Caves | Spotted B-75 Beast 15460 | -6/Lower Caves | Core integrity fell below 50% 15477 | -6/Lower Caves | Destroyed B-75 Beast 15495 | -6/Lower Caves | Lost 13 parts (1p4n4u4w) 15711 | -6/Lower Caves | Build established: Gunner 15759 | -6/Lower Caves | Discovered new exit (range 5) 15814 | -6/Lower Caves | Identified exit to Zion 15834 | -6/Lower Caves | Entered Zion 16140 | -6/Zion | Build established: Mutant 16378 | -6/Zion | System corruption cleaned by Quarantine Array 17876 | -6/Zion | Discovered new exit (range 16) 18342 | -6/Zion | Learned location of Warlord (-4) 18351 | -6/Zion | Learned location of 1 exit from Factory 18513 | -6/Zion | Visited the Megawrench Repair Shop 18513 | -6/Zion | Megawrench repaired 6 parts 18690 | -6/Zion | Learned Factory trap positions 19309 | -6/Zion | Received a visual enhancement algorithm 19841 | -6/Zion | Discovered new exit (range 5) 19843 | -6/Zion | Saw the warning signs outside the Deep Caves entrance 19847 | -6/Zion | Identified exit to Deep Caves 19985 | -6/Zion | Build established: Derelict-Mutant 20046 | -6/Zion | Rebuked by Imprinter 20396 | -6/Zion | Attacked by Zionites 20406 | -6/Zion | DAS Turret deployed 20679 | -6/Zion | Allies destroyed Imprinter 20691 | -6/Zion | Extracted access codes from Imprinter's data core 20740 | -6/Zion | Build established: Derelict-Tank 21525 | -6/Zion | Entered Deep Caves 21555 | -6/Deep Caves | Lost 3 parts (1n1u1w) 22328 | -6/Deep Caves | Found Prototype Protection 22328 | -6/Deep Caves | Identified Zio. Weapon Casing 22347 | -6/Deep Caves | Z-Facility disabled 22360 | -6/Deep Caves | DAS Turret deployed 22366 | -6/Deep Caves | Core integrity fell below 20% 22398 | -6/Deep Caves | Found Zio. Weapon Casing 22503 | -6/Deep Caves | Found Zio. Weapon Casing 22648 | -6/Deep Caves | Build established: Scavenger-Tank 22671 | -6/Deep Caves | Found Prototype Protection 22671 | -6/Deep Caves | Identified Zio. Heavy Carapace 22742 | -6/Deep Caves | DAS Turret deployed 22778 | -6/Deep Caves | Lost 4 parts (3u1w) 23217 | -6/Deep Caves | Build established: Tank 23451 | -6/Deep Caves | Spotted as-75902 23458 | -6/Deep Caves | Destroyed by as-75902 with Assembled Focal Cannon Last Messages --------------- 22753_ ZT-Y5U(z) destroyed. 22757_ Destroyed Prototype Hover Unit. 22757_ 8B-TPB(z) destroyed. 22779_ Acquired 26 matter. 22783_ Acquired 17 matter. 22785_ Acquired 27 matter. 22787_ Acquired 41 matter. 22789_ Acquired 10 matter. 22791_ Acquired 8 matter. 22793_ Acquired 5 matter. 22997_ Zio. Light Carapace destroyed. 23004_ Zio. Weapon Casing destroyed. 23014_ as-53900 destroyed. 23019_ Destroyed Asb. Hover Unit. 23021_ as-13425 destroyed. 23046_ Acquired 15 matter. 23132_ as-76306 destroyed. 23140_ Acquired 17 matter. 23453_ as-75902: "DSI9AT1D G8OHIBQ29FWG 26R186 QD12WHW8W33 TDK1 81FTS" 23455_ Zio. Light Carapace destroyed. Map ----- +----------------------------------------------------+ | ????????????????????????????????????????????##???? | | ?????????????????????????????????????????????????? | | ?????????????????????????????????????????????????? | | ?????????????????????????????????????????????????? | | ?????????????????????????????????????????????????? | | ???????????????????????????????????????????????### | | ??????????????????????????????????????????? ??? | | ?????????????????????????????????????? ?? ??# | | ??????????????????????????????????????? ?? ??# | | ???????????????????????? #????????????? ? ??# | | ????????????????????? b ?????????????? ### | | ??????????????????? #?????????????? ## | | ???????????????? #???###????????# # | | ?????????????? #?## #????????# # | | ???????????? * #?# ?????????# # | | ??????????? * #?# ?????##### | | ??????????? * #?# ?????# ## # | | ?????????? * ** ### #?????# # | | ?????????? ** ## #??????# | | ????????? * * ## #????### | | ????????? * s ## ###### | | ????????? ## ## | | ???????? s #### | | ????????"" ##?? | | ???????" ##? | | ????????" @ # ### #? | | ???????" h h ; #?# ## #? | | ????????" ### ## #### #? | | ???????" # # #?# ### ###??## ##? | | ???????? #### ## ## ##?####?## ##??????###?? | | ????????"" ?????# ?# ?###????????##????????????? | | ?????????? ???????#??# ??????????????????????????? | | ??????????????????????#??????????????????????????? | | | | | | | | | | | | | | | | | | | | | | | | | | | | | | | | | | | +----------------------------------------------------+ Best States ------------- Heat Dissipation 63 Energy Generation 27 Energy Capacity 700 Matter Stores 300 Matter Capacity 300 Sight Range 16 Terrain Scan Density 10 Armor Coverage 1200 Resistance: KI 30 Core Shielding 20 Propulsion Shielding 66 Weapon Shielding 100 Phase Shifting 5 Evasion (%) 55 Target Analysis 5 Core Analysis 6 Recoil Reduction 4 Matter Filtering 30 Salvage Targeting 8 Offensive Hacking 20 Item Schematics ----------------- Combat Drone Bay | -7/Data Miner | Free Lgt. Regenerative Plating | -7/Data Miner | Free Cld. Aerolev Unit | -7/Data Miner | Free Shock Maul | -7/Data Miner | Free Nuclear Pulse Array | -7/Data Miner | Free Variable Charge Gun | -7/Data Miner | Free Gravity Neutralizer | -7/Data Miner | Free Lyr. Heavy Armor Plating | -7/Data Miner | Free Imp. System Shield | -7/Data Miner | Free Quantum Capacitor | -7/Data Miner | Free Robot Schematics ------------------ M-22 Extractor | -7/Data Miner | Free H-66 Slayer | -7/Data Miner | Free A-15 Conveyor | -7/Data Miner | Free W-25 Informer | -7/Data Miner | Free S-27 Virus | -7/Data Miner | Free C-35 Carver | -7/Data Miner | Free R-10 Processor | -7/Data Miner | Free Fabricated ------------ H-66 Slayer | x2 | -6/Factory Alien Tech Used ----------------- None Achievements -------------- None Challenges ------------ None Game ------ Seed AblativeThermoelectricModule Manual? 0 Play Time 01:52:51 Cumulative 88.4 hours Start 2022.05.29 @ 21:05:08 End 2022.05.31 @ 22:57:44 Sessions 4 Manual Loads 0 Difficulty Rogue Special Mode None Game No. 98 Rogue 98 Adventurer 0 Explorer 0 Win Type - Total 0 Types 0/0/0/0/0/0/0/0/0 Lore% 44 Gallery% 55 Achievement% 41 Wizard Run 0 Options --------- ASCII 0 Keyboard 0 Movement Mouse Keybinds 0 Fullscreen 1 Font 18/SmallcapsGlow Map View 76x50 Tactical HUD 1 Map Filters NONE Filters NONE Steam 1 RUN: d9f5732c-b5a4-4d54-9ba8-de5e0177d84e